fUSD/lending_fUSD_20241221
["ID","MTS","AMOUNT","RATE_DAILY","PERIOD"]
[346172539,1734763890031,-753.3,0.00021917,2]
[346172540,1734763890043,-500.0,0.00021917,2]
[346172541,1734763890053,-500.0,0.00021917,2]
[346172542,1734763890063,-500.0,0.00021917,2]
[346172543,1734763890072,-519.53,0.00021917,2]
[346172544,1734763890083,-419.79595207,0.00021917,2]
[346172545,1734763890093,-817.72,0.00021917,2]
[346172546,1734763890103,-500.0,0.00021917,2]
[346172547,1734763890116,-500.0,0.00021917,2]
[346172548,1734763890125,-619.92,0.00021917,2]
[346172549,1734763890136,-162.65908062,0.00021917,2]
[346172550,1734763890146,-500.0,0.00021917,2]
[346172551,1734763890155,-674.16,0.00021917,2]
[346172552,1734763890165,-500.0,0.00021917,2]
[346172553,1734763890377,-781.83,0.00021917,2]
[346172554,1734763890400,-500.0,0.00021917,2]
[346172555,1734763890411,-378.21396537,0.00021917,2]
[346172556,1734763890423,-500.0,0.00021917,2]
[346172557,1734763890431,-646.79,0.00021917,2]
[346172558,1734763890441,-1000.0,0.00021917,30]
[346172559,1734763890451,-759.27,0.00021917,2]
[346172560,1734763890461,-612.38706215,0.00021917,2]
[346172561,1734763890470,-535.16,0.00021917,2]
[346172562,1734763890481,-500.0,0.00021917,2]
[346172563,1734763890490,-1140.19,0.00021917,2]
[346172564,1734763890500,-504.11,0.00021917,2]
[346172565,1734763890509,-713.15,0.00021917,2]
[346172566,1734763890519,-721.59,0.00021917,2]
[346172567,1734763890528,-500.0,0.00021917,2]
[346172568,1734763890538,-500.0,0.00021917,2]
[346172569,1734763890548,-500.0,0.00021917,2]
[346172570,1734763890558,-1544.805157,0.00021917,2]
[346172571,1734763890567,-925.78,0.00021917,2]
[346172572,1734763890576,-500.0,0.00021917,2]
[346172573,1734763890588,-500.0,0.00021917,2]
[346172574,1734763890597,-500.0,0.00021917,2]
[346172575,1734763890607,-152.502649,0.00021917,2]
[346172576,1734763890616,-1057.2639,0.00021917,2]
[346172577,1734763890626,-500.0,0.00021917,2]
[346172578,1734763890635,-362.37808274,0.00021917,2]
[346172579,1734763890645,-549.38,0.00021917,2]
[346172580,1734763890654,-500.0,0.00021917,2]
[346172581,1734763890663,-500.0,0.00021917,2]
[346172582,1734763890673,-575.46,0.00021917,2]
[346172583,1734763890682,-792.53,0.00021917,2]
[346172584,1734763890692,-500.0,0.00021917,2]
[346172585,1734763890702,-500.0,0.00021917,2]
[346172586,1734763890714,-635.22,0.00021917,2]
[346172587,1734763890723,-880.04,0.00021917,2]
[346172588,1734763890733,-500.0,0.00021917,2]
[346172589,1734763890743,-1008.16,0.00021917,2]
[346172590,1734763890753,-726.35,0.00021917,2]
[346172591,1734763890765,-500.0,0.00021917,2]
[346172592,1734763890775,-589.35,0.00021917,2]
[346172593,1734763890784,-811.84,0.00021917,2]
[346172594,1734763890794,-500.0,0.00021917,2]
[346172595,1734763890805,-755.42,0.00021917,2]
[346172596,1734763890815,-511.9134086,0.00021917,2]
[346172597,1734763890824,-2228.7,0.00021917,2]
[346172598,1734763890835,-500.0,0.00021917,2]
[346172599,1734763890845,-502.76,0.00021917,2]
[346172600,1734763890855,-889.66,0.00021917,2]
[346172601,1734763890864,-995.12,0.00021917,2]
[346172602,1734763890874,-999.33,0.00021917,2]
[346172603,1734763890883,-500.0,0.00021917,2]
[346172604,1734763890893,-500.0,0.00021917,2]
[346172605,1734763890902,-511.02,0.00021917,2]
[346172606,1734763890912,-500.0,0.00021917,2]
[346172607,1734763890922,-1503.52,0.00021917,2]
[346172608,1734763890931,-826.38,0.00021917,2]
[346172609,1734763890941,-500.0,0.00021917,2]
[346172610,1734763890951,-845.27,0.00021917,2]
[346172611,1734763890961,-526.88,0.00021917,2]
[346172612,1734763890971,-1849.16,0.00021917,2]
[346172613,1734763890981,-623.84,0.00021917,2]
[346172614,1734763890990,-500.0,0.00021917,2]
[346172615,1734763891000,-658.52,0.00021917,2]
[346172616,1734763891010,-606.39,0.00021917,2]
[346172617,1734763891021,-500.0,0.00021917,2]
[346172618,1734763891030,-669.5,0.00021917,2]
[346172619,1734763891040,-5337.2,0.00021917,2]
[346172620,1734763891049,-1119.97,0.00021917,2]
[346172621,1734763891059,-1317.83,0.00021917,2]
[346172622,1734763891068,-3834.33,0.00021917,2]
[346172623,1734763891078,-1210.11,0.00021917,2]
[346172624,1734763891089,-500.0,0.00021917,2]
[346172625,1734763891099,-3128.08,0.00021917,2]
[346172626,1734763891108,-500.0,0.00021917,2]
[346172627,1734763891118,-500.0,0.00021917,2]
[346172628,1734763891127,-3039.32,0.00021917,2]
[346172629,1734763891137,-543.49,0.00021917,2]
[346172630,1734763891146,-1847.86,0.00021917,2]
[346172631,1734763891155,-805.91,0.00021917,2]
[346172632,1734763891164,-500.0,0.00021917,2]
[346172633,1734763891174,-2926.41,0.00021917,2]
[346172634,1734763891183,-2926.41,0.00021917,2]
[346172635,1734763891192,-2926.41,0.00021917,2]
[346172636,1734763891202,-2926.41,0.00021917,2]
[346172637,1734763891211,-2926.41,0.00021917,2]
[346172638,1734763891221,-2926.41,0.00021917,2]
[346172639,1734763891230,-2926.41,0.00021917,2]
[346172640,1734763891240,-2926.41,0.00021917,2]
[346172641,1734763891250,-2926.41,0.00021917,2]
[346172642,1734763891261,-623.92,0.00021917,2]
[346172643,1734763891272,-2926.41,0.00021917,2]
[346172644,1734763891283,-2527.65,0.00021917,2]
[346172645,1734763891293,-506.6,0.00021917,2]
[346172646,1734763891303,-500.0,0.00021917,2]
[346172647,1734763891312,-947.44,0.00021917,2]
[346172648,1734763891321,-500.0,0.00021917,2]
[346172649,1734763891330,-500.0,0.00021917,2]
[346172650,1734763891341,-500.0,0.00021917,2]
[346172651,1734763891350,-500.0,0.00021917,2]
[346172652,1734763891360,-944.1,0.00021917,2]
[346172653,1734763891369,-861.65,0.00021917,2]
[346172654,1734763891378,-277.25842213,0.00021917,2]
[346172655,1734763891387,-540.73,0.00021917,2]
[346172656,1734763891397,-572.84,0.00021917,2]
[346172657,1734763891406,-582.48,0.00021917,2]
[346172658,1734763891416,-588.74,0.00021917,2]
[346172659,1734763891425,-514.88413288,0.00021917,2]
[346172660,1734763891435,-703.48,0.00021917,2]
[346172661,1734763891445,-500.0,0.00021917,2]
[346172662,1734763891454,-901.63,0.00021917,2]
[346172663,1734763891465,-997.55,0.00021917,2]
[346172664,1734763891474,-799.68,0.00021917,2]
[346172665,1734763891485,-500.0,0.00021917,2]
[346172666,1734763891495,-561.21,0.00021917,2]
[346172667,1734763891505,-500.0,0.00021917,2]
[346172668,1734763891515,-1229.39,0.00021917,2]
[346172669,1734763891526,-632.53,0.00021917,2]
[346172670,1734763891536,-1931.34,0.00021917,2]
[346172671,1734763891547,-500.0,0.00021917,2]
[346172672,1734763891556,-1470.44,0.00021917,2]
[346172673,1734763891565,-500.0,0.00021917,2]
[346172674,1734763891575,-500.0,0.00021917,2]
[346172675,1734763891587,-500.0,0.00021917,2]
[346172676,1734763891596,-736.6,0.00021917,2]
[346172677,1734763891605,-703.2,0.00021917,2]
[346172678,1734763891614,-1406.58,0.00021917,2]
[346172679,1734763891623,-1544.85,0.00021917,2]
[346172680,1734763891632,-665.66,0.00021917,2]
[346172681,1734763891641,-514.28,0.00021917,2]
[346172682,1734763891651,-500.0,0.00021917,2]
[346172683,1734763891660,-795.88,0.00021917,2]
[346172684,1734763891668,-500.0,0.00021917,2]
[346172685,1734763891678,-1739.03,0.00021917,2]
[346172686,1734763891687,-761.21,0.00021917,2]
[346172687,1734763891695,-500.0,0.00021917,2]
[346172688,1734763891704,-1021.76,0.00021917,2]
[346172689,1734763891713,-702.19,0.00021917,2]
[346172690,1734763891722,-859.2,0.00021917,2]
[346172691,1734763891731,-1193.73,0.00021917,2]
[346172692,1734763891740,-632.4,0.00021917,2]
[346172693,1734763891750,-2294.66,0.00021917,2]
[346172694,1734763891759,-806.9,0.00021917,2]
[346172695,1734763891768,-1021.18,0.00021917,2]
[346172696,1734763891777,-1013.35,0.00021917,2]
[346172697,1734763891786,-632.58,0.00021917,2]
[346172698,1734763891796,-2927.04,0.00021917,2]
[346172699,1734763891805,-518.58,0.00021917,2]
[346172700,1734763891814,-647.88,0.00021917,2]
[346172701,1734763891823,-4561.25,0.00021917,2]
[346172702,1734763891832,-872.93,0.00021917,2]
[346172703,1734763891841,-885.58,0.00021917,2]
[346172704,1734763891850,-1603.4,0.00021917,2]
[346172705,1734763891860,-563.80009621,0.00021917,2]
[346172706,1734763891870,-1346.86,0.00021917,2]
[346172707,1734763891880,-500.0,0.00021917,2]
[346172708,1734763891891,-500.0,0.00021917,2]
[346172709,1734763891905,-763.45,0.00021917,2]
[346172710,1734763891928,-984.85,0.00021917,2]
[346172711,1734763891950,-873.04,0.00021917,2]
[346172712,1734763891974,-500.0,0.00021917,2]
[346172713,1734763891998,-620.97,0.00021917,2]
[346172714,1734763892021,-733.9,0.00021917,2]
[346172715,1734763892046,-1060.44,0.00021917,2]
[346172716,1734763892070,-1223.12,0.00021917,2]
[346172717,1734763892097,-500.0,0.00021917,2]
[346172718,1734763892119,-500.0,0.00021917,2]
[346172719,1734763892145,-500.0,0.00021917,2]
[346172720,1734763892160,-633.71,0.00021917,2]
[346172721,1734763892169,-1063.84,0.00021917,2]
[346172722,1734763892179,-6034.63,0.00021917,2]
[346172723,1734763892188,-842.49,0.00021917,2]
[346172724,1734763892197,-500.0,0.00021917,2]
[346172725,1734763892207,-7492.81,0.00021917,2]
[346172726,1734763892216,-744.03,0.00021917,2]
[346172727,1734763892226,-500.0,0.00021917,2]
[346172728,1734763892235,-946.91,0.00021917,2]
[346172729,1734763892244,-512.74,0.00021917,2]
[346172730,1734763892254,-894.54,0.00021917,2]
[346172731,1734763892264,-630.38,0.00021917,2]
[346172732,1734763892275,-500.0,0.00021917,2]
[346172733,1734763892286,-513.14,0.00021917,2]
[346172734,1734763892295,-500.0,0.00021917,2]
[346172735,1734763892305,-569.68,0.00021917,2]
[346172736,1734763892314,-2074.71,0.00021917,2]
[346172737,1734763892324,-1539.27,0.00021917,2]
[346172738,1734763892334,-500.0,0.00021917,2]
[346172739,1734763892344,-860.01,0.00021917,2]
[346172740,1734763892355,-925.87,0.00021917,2]
[346172741,1734763892364,-500.0,0.00021917,2]
[346172742,1734763892373,-500.0,0.00021917,2]
[346172743,1734763892383,-2324.7,0.00021917,2]
[346172744,1734763892392,-684.38,0.00021917,2]
[346172745,1734763892401,-684.38,0.00021917,2]
[346172746,1734763892411,-684.38,0.00021917,2]
[346172747,1734763892420,-684.38,0.00021917,2]
[346172748,1734763892430,-684.38,0.00021917,2]
[346172749,1734763892439,-684.38,0.00021917,2]
[346172750,1734763892449,-684.38,0.00021917,2]
[346172751,1734763892459,-684.38,0.00021917,2]
[346172752,1734763892468,-684.38,0.00021917,2]
[346172753,1734763892477,-684.38,0.00021917,2]
[346172754,1734763892487,-684.38,0.00021917,2]
[346172755,1734763892496,-1111.8,0.00021917,2]
[346172756,1734763892505,-1500.0,0.00021918,30]
[346172757,1734763892515,-708.19349941,0.00021921,2]
[346172758,1734763892524,-150.0,0.00021931,4]
[346172759,1734763892533,-150.0,0.00021941,2]
[346172760,1734763892543,-502.1708482,0.00021941,2]
[346172761,1734763892553,-500.0,0.00021941,2]
[346172762,1734763892562,-507.38680794,0.00021941,2]
[346172763,1734763892571,-500.0,0.00021941,2]
[346172764,1734763892580,-500.0,0.00021941,2]
[346172765,1734763892592,-500.0,0.00021941,2]
[346172766,1734763892602,-500.0,0.00021941,2]
[346172767,1734763892611,-500.0,0.00021941,2]
[346172768,1734763892620,-500.0,0.00021941,2]
[346172769,1734763892630,-503.25292231,0.00021941,2]
[346172770,1734763892639,-500.0,0.00021941,2]
[346172771,1734763892648,-752.05,0.00021941,2]
[346172772,1734763892658,-500.0,0.00021941,2]
[346172773,1734763892667,-635.87,0.00021941,2]
[346172774,1734763892677,-558.8,0.00021941,2]
[346172775,1734763892687,-500.0,0.00021941,2]
[346172776,1734763892696,-437.22693411,0.00021941,2]
[346172777,1734763892705,-656.13,0.00021941,2]
[346172778,1734763892715,-542.76,0.00021941,2]
[346172779,1734763892724,-561.7,0.00021941,2]
[346172780,1734763892734,-500.0,0.00021941,2]
[346172781,1734763892744,-752.18,0.00021941,2]
[346172782,1734763892753,-646.72,0.00021941,2]
[346172783,1734763892763,-1018.18,0.00021941,2]
[346172784,1734763892772,-500.0,0.00021941,2]
[346172785,1734763892781,-500.0,0.00021941,2]
[346172786,1734763892790,-603.67,0.00021941,2]
[346172787,1734763892799,-539.76,0.00021941,2]
[346172788,1734763892873,-581.25,0.00021941,2]
[346172789,1734763892883,-753.41,0.00021941,2]
[346172790,1734763892892,-500.0,0.00021941,2]
[346172791,1734763892901,-613.4,0.00021941,2]
[346172792,1734763892910,-587.49,0.00021941,2]
[346172793,1734763892919,-500.0,0.00021941,2]
[346172794,1734763892928,-500.0,0.00021941,2]
[346172795,1734763892937,-585.31,0.00021941,2]
[346172796,1734763892946,-969.91,0.00021941,2]
[346172797,1734763892955,-612.68,0.00021941,2]
[346172798,1734763892965,-500.0,0.00021941,2]
[346172799,1734763892974,-704.51,0.00021941,2]
[346172800,1734763892983,-785.75,0.00021941,2]
[346172801,1734763892992,-807.53,0.00021941,2]
[346172802,1734763893002,-949.8,0.00021941,2]
[346172803,1734763893011,-500.0,0.00021941,2]
[346172804,1734763893021,-1047.38,0.00021941,2]
[346172805,1734763893033,-500.0,0.00021941,2]
[346172806,1734763893042,-828.43,0.00021941,2]
[346172807,1734763893051,-693.55,0.00021941,2]
[346172808,1734763893061,-500.0,0.00021941,2]
[346172809,1734763893071,-987.69,0.00021941,2]
[346172810,1734763893080,-998.86,0.00021941,2]
[346172811,1734763893091,-727.86,0.00021941,2]
[346172812,1734763893101,-666.29,0.00021941,2]
[346172813,1734763893111,-760.44,0.00021941,2]
[346172814,1734763893120,-525.91,0.00021941,2]
[346172815,1734763893131,-500.0,0.00021941,2]
[346172816,1734763893141,-1133.35,0.00021941,2]
[346172817,1734763893151,-829.52,0.00021941,2]
[346172818,1734763893160,-1190.66,0.00021941,2]
[346172819,1734763893170,-500.0,0.00021941,2]
[346172820,1734763893179,-704.43,0.00021942,2]
[346172821,1734763893189,-500.0,0.00021942,2]
[346172822,1734763893198,-500.0,0.00021942,2]
[346172823,1734763893208,-500.0,0.00021942,2]
[346172824,1734763893218,-500.0,0.00021942,2]
[346172825,1734763893228,-593.29744283,0.00021942,2]
[346172826,1734763893237,-500.0,0.00021942,2]
[346172827,1734763893247,-500.0,0.00021942,2]
[346172828,1734763893257,-500.0,0.00021942,2]
[346172829,1734763893268,-500.0,0.00021942,2]
[346172830,1734763893277,-334.79055864,0.00021942,2]
[346172831,1734763893286,-500.0,0.00021942,2]
[346172832,1734763893295,-500.0,0.00021942,2]
[346172833,1734763893305,-513.29630043,0.00021942,2]
[346172834,1734763893315,-500.0,0.00021942,2]
[346172835,1734763893324,-478.03932556,0.00021942,2]
[346172836,1734763893333,-500.0,0.00021942,2]
[346172837,1734763893345,-624.56,0.00021942,2]
[346172838,1734763893355,-500.0,0.00021942,2]
[346172839,1734763893364,-500.0,0.00021942,2]
[346172840,1734763893374,-500.0,0.00021942,2]
[346172841,1734763893383,-500.0,0.00021942,2]
[346172842,1734763893392,-521.75997186,0.00021942,2]
[346172843,1734763893401,-500.0,0.00021942,2]
[346172844,1734763893411,-500.0,0.00021942,2]
[346172845,1734763893420,-500.0,0.00021942,2]
[346172846,1734763893429,-500.0,0.00021942,2]
[346172847,1734763893438,-500.0,0.00021942,2]
[346172848,1734763893447,-500.0,0.00021942,2]
[346172849,1734763893456,-500.0,0.00021942,2]
[346172850,1734763893465,-500.0,0.00021942,2]
[346172851,1734763893475,-500.0,0.00021942,2]
[346172852,1734763893483,-500.0,0.00021942,2]
[346172853,1734763893493,-500.0,0.00021942,2]
[346172854,1734763893502,-500.0,0.00021942,2]
[346172855,1734763893511,-500.0,0.00021942,2]
[346172856,1734763893520,-500.0,0.00021942,2]
[346172857,1734763893529,-500.0,0.00021942,2]
[346172858,1734763893537,-445.3608213,0.00021942,2]
[346172859,1734763893546,-500.0,0.00021942,2]
[346172860,1734763893555,-500.0,0.00021942,2]
[346172861,1734763893569,-500.0,0.00021942,2]
[346172862,1734763893578,-348.0382311,0.00021942,2]
[346172863,1734763893589,-500.0,0.00021942,2]
[346172864,1734763893598,-796.23,0.00021942,2]
[346172865,1734763893607,-500.0,0.00021942,2]
[346172866,1734763893617,-555.46,0.00021942,2]
[346172867,1734763893626,-500.0,0.00021942,2]
[346172868,1734763893635,-500.0,0.00021942,2]
[346172869,1734763893645,-500.0,0.00021942,2]
[346172870,1734763893660,-500.0,0.00021942,2]
[346172871,1734763893670,-500.0,0.00021942,2]
[346172872,1734763893680,-500.0,0.00021942,2]
[346172873,1734763893689,-500.0,0.00021942,2]
[346172874,1734763893698,-500.0,0.00021942,2]
[346172875,1734763893708,-500.0,0.00021942,2]
[346172876,1734763893717,-500.0,0.00021942,2]
[346172877,1734763893727,-537.11,0.00021942,2]
[346172878,1734763893736,-811.37,0.00021942,2]
[346172879,1734763893746,-1237.38,0.00021942,2]
[346172880,1734763893755,-1685.23,0.00021942,2]
[346172881,1734763893765,-1451.27,0.00021942,2]
[346172882,1734763893774,-500.0,0.00021942,2]
[346172883,1734763893784,-510.53,0.00021942,2]
[346172884,1734763893794,-1183.17,0.00021942,2]
[346172885,1734763893803,-870.45,0.00021942,2]
[346172886,1734763893813,-2957.21,0.00021942,2]
[346172887,1734763893823,-1132.82,0.00021942,2]
[346172888,1734763893833,-1500.0,0.00021976,30]
[346172889,1734763893843,-803.79,0.00021979,2]
[346172890,1734763893852,-151.0,0.00022,7]
[346172891,1734763893862,-151.0,0.00022,7]
[346172892,1734763893872,-366.0,0.00022,2]
[346172893,1734763893883,-2110.0,0.00022,2]
[346172894,1734763893892,-154.619945,0.00022,7]
[346172895,1734763893903,-220.680413,0.00022,7]
[346172896,1734763893914,-151.992091,0.00022,7]
[346172897,1734763893924,-151.0,0.00022,7]
[346172898,1734763893935,-151.0,0.00022,7]
[346172899,1734763893944,-657.968342,0.00022,7]
[346172900,1734763893954,-657.968342,0.00022,7]
[346172901,1734763893963,-226.279809,0.00022,7]
[346172902,1734763893974,-167.182842,0.00022,7]
[346172903,1734763893983,-167.182842,0.00022,7]
[346172904,1734763893993,-151.0,0.00022,7]
[346172905,1734763894003,-159.459192,0.00022,7]
[346172906,1734763894013,-159.459192,0.00022,7]
[346172907,1734763894023,-151.747205,0.00022,7]
[346172908,1734763894032,-901.437412,0.00022,7]
[346172909,1734763894042,-7704.0,0.00022,2]
[346172910,1734763894051,-901.437412,0.00022,7]
[346172911,1734763894060,-151.724004,0.00022,7]
[346172912,1734763894070,-1500.0,0.00022034,30]
[346172913,1734763894079,-150.0,0.00022043,4]
[346172914,1734763894090,-734.4638556,0.0002205,2]
[346172915,1734763894099,-152.70496243,0.00022078,2]
[346172916,1734763894109,-1500.0,0.00022093,30]
[346172917,1734763894119,-5000.0,0.000221,2]
[346172918,1734763894128,-5000.0,0.000221,2]
[346172919,1734763894137,-803.79,0.00022116,2]
[346172920,1734763894146,-150.0,0.00022118,4]
[346172921,1734763894156,-1500.0,0.00022151,30]
[346172922,1734763894165,-909104.70569802,0.00022163,2]
[346172923,1734763894175,-500.0,0.0002219,2]
[346172924,1734763894184,-500.0,0.0002219,2]
[346172925,1734763894194,-787.7,0.0002219,2]
[346172926,1734763894202,-500.0,0.0002219,2]
[346172927,1734763894212,-722.15,0.0002219,2]
[346172928,1734763894221,-598.48,0.0002219,2]
[346172929,1734763894230,-589.12,0.0002219,2]
[346172930,1734763894240,-746.52,0.0002219,2]
[346172931,1734763894249,-500.0,0.0002219,2]
[346172932,1734763894258,-500.0,0.0002219,2]
[346172933,1734763894271,-500.0,0.0002219,2]
[346172934,1734763894281,-579.24,0.0002219,2]
[346172935,1734763894291,-709.84,0.0002219,2]
[346172936,1734763894300,-704.07,0.0002219,2]
[346172937,1734763894310,-656.8,0.0002219,2]
[346172938,1734763894319,-772.15,0.0002219,2]
[346172939,1734763894328,-500.0,0.0002219,2]
[346172940,1734763894349,-500.0,0.0002219,2]
[346172941,1734763894370,-500.0,0.0002219,2]
[346172942,1734763894393,-500.0,0.0002219,2]
[346172943,1734763894415,-500.0,0.0002219,2]
[346172944,1734763894435,-1124.77,0.0002219,2]
[346172945,1734763894456,-512.85,0.0002219,2]
[346172946,1734763894479,-1044.57,0.0002219,2]
[346172947,1734763894501,-577.68,0.0002219,2]
[346172948,1734763894522,-500.0,0.0002219,2]
[346172949,1734763894549,-500.0,0.0002219,2]
[346172950,1734763894571,-687.33,0.0002219,2]
[346172951,1734763894593,-727.24,0.0002219,2]
[346172952,1734763894612,-500.0,0.0002219,2]
[346172953,1734763894622,-500.0,0.0002219,2]
[346172954,1734763894631,-671.56,0.0002219,2]
[346172955,1734763894640,-500.0,0.0002219,2]
[346172956,1734763894650,-604.9,0.0002219,2]
[346172957,1734763894659,-500.0,0.0002219,2]
[346172958,1734763894668,-503.11,0.0002219,2]
[346172959,1734763894677,-500.0,0.0002219,2]
[346172960,1734763894687,-648.38,0.0002219,2]
[346172961,1734763894696,-534.85,0.0002219,2]
[346172962,1734763894706,-500.0,0.0002219,2]
[346172963,1734763894716,-578.88,0.0002219,2]
[346172964,1734763894726,-500.0,0.0002219,2]
[346172965,1734763894736,-546.17,0.0002219,2]
[346172966,1734763894745,-500.0,0.0002219,2]
[346172967,1734763894754,-520.15,0.0002219,2]
[346172968,1734763894764,-500.0,0.0002219,2]
[346172969,1734763894774,-628.26,0.0002219,2]
[346172970,1734763894784,-529.73,0.0002219,2]
[346172971,1734763894793,-1052.04,0.0002219,2]
[346172972,1734763894802,-607.01,0.0002219,2]
[346172973,1734763894811,-752.7,0.0002219,2]
[346172974,1734763894820,-944.17,0.0002219,2]
[346172975,1734763894829,-716.64,0.0002219,2]
[346172976,1734763894841,-829.23,0.0002219,2]
[346172977,1734763894850,-539.95,0.0002219,2]
[346172978,1734763894860,-739.19,0.0002219,2]
[346172979,1734763894870,-783.63,0.0002219,2]
[346172980,1734763894880,-500.0,0.0002219,2]
[346172981,1734763894889,-500.0,0.0002219,2]
[346172982,1734763894899,-1210.89,0.0002219,2]
[346172983,1734763894908,-512.97,0.0002219,2]
[346172984,1734763894918,-1023.43,0.0002219,2]
[346172985,1734763894928,-500.0,0.0002219,2]
[346172986,1734763894937,-658.92,0.0002219,2]
[346172987,1734763894947,-985.94,0.0002219,2]
[346172988,1734763894956,-522.13,0.00022191,2]
[346172989,1734763894966,-526.95,0.00022191,2]
[346172990,1734763894975,-753.3,0.00022191,2]
[346172991,1734763894984,-500.0,0.00022191,2]
[346172992,1734763894994,-500.0,0.00022191,2]
[346172993,1734763895003,-540.6,0.00022191,2]
[346172994,1734763895013,-817.72,0.00022191,2]
[346172995,1734763895024,-500.0,0.00022191,2]
[346172996,1734763895033,-500.0,0.00022191,2]
[346172997,1734763895043,-619.92,0.00022191,2]
[346172998,1734763895052,-500.0,0.00022191,2]
[346172999,1734763895062,-674.16,0.00022191,2]
[346173000,1734763895071,-500.0,0.00022191,2]
[346173001,1734763895081,-781.83,0.00022191,2]
[346173002,1734763895091,-500.0,0.00022191,2]
[346173003,1734763895100,-500.0,0.00022191,2]
[346173004,1734763895109,-646.79,0.00022191,2]
[346173005,1734763895119,-1000.0,0.00022191,30]
[346173006,1734763895128,-759.27,0.00022191,2]
[346173007,1734763895138,-535.16,0.00022191,2]
[346173008,1734763895147,-500.0,0.00022191,2]
[346173009,1734763895157,-1140.19,0.00022191,2]
[346173010,1734763895166,-504.11,0.00022191,2]
[346173011,1734763895176,-713.15,0.00022191,2]
[346173012,1734763895185,-721.59,0.00022191,2]
[346173013,1734763895195,-500.0,0.00022191,2]
[346173014,1734763895204,-500.0,0.00022191,2]
[346173015,1734763895213,-500.0,0.00022191,2]
[346173016,1734763895223,-1544.805157,0.00022191,2]
[346173017,1734763895232,-500.0,0.00022191,2]
[346173018,1734763895242,-500.0,0.00022191,2]
[346173019,1734763895251,-500.0,0.00022191,2]
[346173020,1734763895261,-925.78,0.00022191,2]
[346173021,1734763895270,-1057.2639,0.00022191,2]
[346173022,1734763895282,-500.0,0.00022191,2]
[346173023,1734763895292,-549.38,0.00022191,2]
[346173024,1734763895303,-500.0,0.00022191,2]
[346173025,1734763895312,-500.0,0.00022191,2]
[346173026,1734763895321,-575.46,0.00022191,2]
[346173027,1734763895331,-792.53,0.00022191,2]
[346173028,1734763895340,-500.0,0.00022191,2]
[346173029,1734763895353,-500.0,0.00022191,2]
[346173030,1734763895363,-635.22,0.00022191,2]
[346173031,1734763895373,-880.04,0.00022191,2]
[346173032,1734763895383,-500.0,0.00022191,2]
[346173033,1734763895393,-1008.16,0.00022191,2]
[346173034,1734763895402,-726.35,0.00022191,2]
[346173035,1734763895412,-500.0,0.00022191,2]
[346173036,1734763895422,-589.35,0.00022191,2]
[346173037,1734763895432,-811.84,0.00022191,2]
[346173038,1734763895441,-500.0,0.00022191,2]